bitfinex-derivatives/quotes_SOLF0:USTF0_20260207
["timestamp","ask_amount","ask_price","bid_price","bid_amount"]
[1770462002350,3.70108022,84.959,84.91,4.9894915]
[1770462002738,10.5996,84.958,84.91,4.9894915]
[1770462003347,3.70108022,84.957,84.91,4.9894915]
[1770462003647,3.70108022,84.957,84.899,10.6069]
[1770462003648,10.6008,84.949,84.901,3.41320048]
[1770462004052,14.30298022,84.939,84.901,3.41320048]
[1770462004442,14.30298022,84.939,84.856,21.95238132]
[1770462004443,4.9894915,84.96,84.911,3.41320048]
[1770462004652,3.70108022,84.959,84.911,3.41320048]
[1770462005054,10.5996,84.958,84.921,3.41320048]
[1770462005547,3.70108022,84.972,84.94,8.40269198]
[1770462005748,14.29908022,84.971,84.931,3.45966685]
[1770462007145,3.68721467,84.97,84.931,3.45966685]
[1770462007345,10.5986,84.966,84.931,3.45966685]
[1770462010255,14.43875409,84.96,84.92,8.41600206]
[1770462010955,14.43875409,84.96,84.921,3.426507]
[1770462011553,3.83935409,84.96,84.921,3.426507]
[1770462011754,3.83935409,84.978,84.931,3.43980385]
[1770462011957,3.83935409,84.978,84.941,3.43980385]
[1770462012153,3.83935409,84.974,84.941,3.43980385]
[1770462012456,3.83935409,84.974,84.93,8.42929535]
[1770462012957,3.83935409,84.972,84.931,3.43980385]
[1770462013152,4.9894915,84.97,84.931,3.43980385]
[1770462013761,8.82884559,84.97,84.931,3.43980385]
[1770462014057,3.83935409,84.969,84.931,3.43980385]
[1770462014754,3.83935409,84.959,84.905,3.4482228]
[1770462015059,3.83935409,84.949,84.9,4.9894915]
[1770462015756,3.83935409,84.943,84.9,4.9894915]
[1770462016455,3.83935409,84.943,84.91,4.9894915]
[1770462016657,3.83935409,84.954,84.911,3.50479347]
[1770462017357,3.83935409,84.949,84.9,8.49428497]
[1770462017758,3.83935409,84.949,84.91,4.9894915]
[1770462019666,14.44005409,84.949,84.91,4.9894915]
[1770462020462,10.6016,84.942,84.91,4.9894915]
[1770462021465,3.83935409,84.961,84.921,3.3570459]
[1770462022965,14.43865409,84.96,84.921,3.3570459]
[1770462024265,10.5983,84.969,84.93,4.9894915]
[1770462025570,3.83935409,84.968,84.93,4.9894915]
[1770462026571,14.43605409,84.981,84.94,4.9894915]
[1770462026964,3.83935409,84.98,84.94,4.9894915]
[1770462027572,3.83935409,84.98,84.94,4.9883615]
[1770462028171,3.83935409,84.98,84.95,4.9883615]
[1770462028371,3.83935409,84.992,84.95,4.9883615]
[1770462028968,3.83935409,84.992,84.96,4.9883615]
[1770462029478,3.83935409,84.99,84.95,8.30052167]
[1770462035986,3.73088418,84.989,84.95,3.31216017]
[1770462036382,3.73088418,84.989,84.95,8.30052167]
[1770462037084,10.5959,84.988,84.951,3.27058779]
[1770462037890,14.32678418,84.988,84.951,3.27058779]
[1770462040284,3.73088418,84.978,84.94,8.32960211]
[1770462040591,3.73088418,84.978,84.94,3.34124061]
[1770462041279,3.73088418,84.978,84.94,8.32960211]
[1770462041485,3.73088418,84.978,84.94,3.34124061]
[1770462041694,10.5974,84.976,84.94,3.34124061]
[1770462041894,3.73088418,84.978,84.94,8.32960211]
[1770462042195,3.73088418,84.989,84.951,3.37283015]
[1770462043588,3.73088418,85.0,84.96,4.9883615]
[1770462043881,10.5951,84.994,84.96,4.9883615]
[1770462046592,3.73088418,85.0,84.96,4.9883615]
[1770462048596,3.73088418,85.0,84.96,8.30959193]
[1770462049291,4.9883615,85.01,84.965,10.5986]
[1770462049496,3.73088418,85.01,84.97,8.30959193]
[1770462049897,3.73088418,85.009,84.965,10.5986]
[1770462050094,3.73088418,85.008,84.96,4.9883615]
[1770462050291,3.73088418,85.008,84.96,8.29678801]
[1770462051103,3.73088418,85.005,84.96,8.29678801]
[1770462052798,3.73088418,85.002,84.961,3.38020032]
[1770462054603,3.73088418,85.0,84.961,3.38020032]
[1770462056505,3.73088418,85.0,84.97,8.34639138]
[1770462056798,3.73088418,85.009,84.971,3.35802988]
[1770462059505,3.73088418,85.009,84.98,4.9883615]
[1770462059805,3.73088418,85.009,84.971,3.35802988]
[1770462060205,3.73088418,85.03,84.99,4.9883615]
[1770462060500,3.73088418,85.03,85.0,4.9883615]
[1770462061305,3.73088418,85.03,84.991,3.38014615]
[1770462061306,3.73088418,85.03,85.01,4.9883615]
[1770462061511,3.73088418,85.059,85.01,4.9883615]
[1770462061702,3.73088418,85.059,85.03,4.9883615]
[1770462061903,3.73088418,85.059,85.021,3.34550045]
[1770462062708,10.5873,85.057,85.021,3.34550045]
[1770462063106,3.73088418,85.059,85.021,3.34550045]
[1770462063711,3.73088418,85.059,85.03,4.9883615]
[1770462064214,3.73088418,85.07,85.04,4.9883615]
[1770462064512,3.73088418,85.07,85.031,3.40743607]
[1770462065910,3.73088418,85.07,85.03,4.9883615]
[1770462065911,3.71162644,85.076,85.04,3.5149261]
[1770462066302,3.71162644,85.076,85.03,4.9883615]
[1770462066513,3.71162644,85.076,85.03,8.5032876]
[1770462066715,3.71162644,85.076,85.031,3.51492877]
[1770462067102,3.71162644,85.074,85.031,3.51492877]
[1770462068212,3.71162644,85.071,85.031,3.51492877]
[1770462069912,10.5857,85.07,85.031,3.51492877]
[1770462070118,3.9116261,85.069,85.031,3.51492877]
[1770462071215,3.9116261,85.062,85.021,3.4615664]
[1770462071610,4.9883615,85.06,85.021,3.4615664]
[1770462071916,10.587,85.059,85.021,3.4615664]
[1770462072413,21.1617,85.109,85.01,4.9883615]
[1770462072414,3.9116261,85.051,85.01,4.9883615]
[1770462072615,3.9116261,85.039,84.996,3.51807124]
[1770462072812,3.9116261,85.039,85.0,4.9883615]
[1770462073018,3.9116261,85.039,85.0,8.50643274]
[1770462073415,3.9116261,85.039,85.01,4.9883615]
[1770462073616,3.9116261,85.053,85.01,8.50643274]
[1770462074721,3.9116261,85.051,85.01,8.50643274]
[1770462075112,3.9116261,85.051,85.011,3.53153541]
[1770462075310,3.9116261,85.051,85.02,4.9883615]
[1770462075518,3.9116261,85.075,85.03,4.9883615]
[1770462075721,12.99629055,85.111,85.031,3.53755737]
[1770462075722,3.9116261,85.069,85.031,3.53755737]
[1770462075926,2.04603581,85.111,85.01,4.9883615]
[1770462075927,3.9116261,85.059,85.01,4.9883615]
[1770462076429,4.9883615,85.05,85.01,4.9883615]
[1770462076727,3.9116261,85.049,85.007,3.53755737]
[1770462078017,10.5874,85.056,85.011,3.49416572]
[1770462078629,14.4990261,85.056,85.011,3.49416572]
[1770462078926,14.4990261,85.056,84.963,35.34]
[1770462078927,3.9116261,85.068,85.021,3.49416572]
[1770462079730,3.9116261,85.066,85.021,3.49416572]
[1770462080022,3.9116261,85.059,85.01,4.9883615]
[1770462080427,8.8999876,85.05,85.01,4.9883615]
[1770462081527,3.9116261,85.05,85.01,4.9883615]
[1770462081827,3.9116261,85.05,85.01,8.46536416]
[1770462082133,3.9116261,85.063,85.011,3.47700266]
[1770462082429,3.9116261,85.063,85.02,4.9883615]
[1770462083418,3.9116261,85.059,85.02,4.9883615]
[1770462083616,2.04603581,85.111,85.011,3.47700266]
[1770462083617,8.8999876,85.05,85.011,3.47700266]
[1770462084225,3.9116261,85.049,85.011,3.47700266]
[1770462084927,3.9116261,85.049,84.999,10.5944]
[1770462085226,3.9116261,85.039,84.997,3.49700016]
[1770462085427,3.9116261,85.039,85.0,4.9883615]
[1770462086026,3.9116261,85.039,84.985,3.43509538]
[1770462086233,3.9116261,85.029,84.985,3.43509538]
[1770462086925,3.9116261,85.043,85.0,4.9883615]
[1770462087325,3.9116261,85.043,85.0,8.42345688]
[1770462087631,3.9116261,85.043,85.0,8.416059]
[1770462093329,3.9116261,85.043,85.0,3.43509538]
[1770462093927,10.95025474,85.073,84.989,3.6018299]
[1770462093928,3.9116261,85.039,84.989,3.6018299]
[1770462094838,3.9116261,85.036,84.99,4.98096362]
[1770462095133,3.9116261,85.029,84.989,3.6018299]
[1770462095937,3.88767476,85.027,84.989,3.6018299]
[1770462096240,3.88767476,85.019,84.976,3.63637527]
[1770462096842,3.88767476,85.017,84.976,3.63637527]
[1770462097839,3.88767476,85.013,84.976,3.63637527]
[1770462098337,4.98096362,85.02,84.96,4.98096362]
[1770462098338,3.88767476,85.007,84.96,8.65106538]
[1770462098538,3.88767476,85.007,84.961,3.67010176]
[1770462101044,3.88767476,85.005,84.97,4.98096362]
[1770462101756,3.88767476,85.005,84.95,3.66917885]
[1770462102047,3.88767476,84.999,84.95,8.65014247]
[1770462102745,3.88767476,84.999,84.97,4.98096362]
[1770462105540,3.88767476,84.999,84.98,4.98096362]
[1770462105736,3.88767476,85.011,84.98,4.98096362]
[1770462106536,3.88767476,85.011,84.99,4.98096362]
[1770462110154,3.88767476,85.011,84.98,4.98096362]
[1770462118459,3.88767476,85.034,85.0,4.98096362]
[1770462118663,3.88767476,85.034,85.01,4.98096362]
[1770462118855,3.88767476,85.031,85.0,4.98096362]
[1770462119164,3.88767476,85.029,84.97,4.98096362]
[1770462119657,3.88767476,85.029,84.98,4.98096362]
[1770462119860,3.88767476,85.014,84.98,4.98096362]
[1770462120855,3.88767476,85.014,84.939,3.25451037]
[1770462121155,3.88767476,85.014,84.98,4.98096362]
[1770462121358,3.88767476,85.014,84.99,4.98096362]
[1770462121548,3.88767476,85.049,85.0,4.98096362]
[1770462122557,3.88767476,85.044,85.0,4.98096362]
[1770462122956,3.88767476,85.029,84.98,4.98096362]
[1770462123358,3.88767476,85.013,84.97,4.98096362]
[1770462123660,3.88767476,85.009,84.96,4.98096362]
[1770462123955,3.88767476,84.991,84.95,4.98096362]
[1770462124351,3.88767476,84.989,84.95,4.98096362]
[1770462124554,3.88767476,84.989,84.94,4.98096362]
[1770462125460,3.88767476,84.979,84.933,3.69946699]
[1770462125658,3.88767476,84.959,84.911,3.69946699]
[1770462127960,3.93235175,84.949,84.911,3.69946699]
[1770462128262,3.93235175,84.949,84.9,4.98096362]
[1770462128663,4.98096362,84.94,84.896,3.92209898]
[1770462129061,3.93235175,84.929,84.87,3.92209898]
[1770462129250,3.93235175,84.929,84.881,3.92209898]
[1770462129650,3.93235175,84.927,84.881,3.92209898]
[1770462130261,3.93235175,84.927,84.89,4.98096362]
[1770462130451,3.93235175,84.927,84.881,3.92209898]
[1770462130652,252.55276593,85.521,84.881,3.92209898]
[1770462130653,3.6368274,84.919,84.881,3.92209898]
[1770462130859,10.945329,84.988,84.794,21.91245283]
[1770462130860,3.6368274,84.909,84.864,3.82858537]
[1770462131660,4.98096362,84.9,84.864,3.82858537]
[1770462131966,4.98096362,84.89,84.851,3.82858537]
[1770462132566,3.6368274,84.889,84.841,3.82858537]
[1770462134168,14.88137604,84.9,84.841,3.82858537]
[1770462134360,3.6368274,84.916,84.841,3.82858537]
[1770462135062,3.6368274,84.916,84.861,3.82858537]
[1770462136161,3.6368274,84.935,84.861,3.82858537]
[1770462136772,3.6368274,84.935,84.881,3.82858537]
[1770462138970,3.6368274,84.935,84.864,3.82858537]
[1770462139870,3.6368274,84.922,84.864,3.82858537]
[1770462140075,3.6368274,84.922,84.87,3.82858537]
[1770462141871,3.6368274,84.919,84.853,3.82858537]
[1770462142770,3.6368274,84.908,84.853,3.82858537]
[1770462146171,3.6368274,84.901,84.853,3.82858537]
[1770462146961,3.6368274,84.89,84.84,3.82858537]
[1770462147370,3.6368274,84.889,84.84,3.82858537]
[1770462148478,14.8861141,84.89,84.815,3.82858537]
[1770462148479,3.6368274,84.879,84.815,3.82858537]
[1770462149568,14.8861141,84.89,84.818,3.82858537]
[1770462149870,3.6368274,84.893,84.831,3.82858537]
[1770462150770,10.6082,84.889,84.832,3.82858537]
[1770462151771,3.6368274,84.888,84.832,3.82858537]
[1770462152672,3.6368274,84.886,84.832,3.82858537]
[1770462153568,3.6368274,84.869,84.817,3.82858537]
[1770462153976,3.6368274,84.852,84.803,3.82858537]
[1770462154372,3.6368274,84.869,84.811,3.82858537]
[1770462154569,10.6094,84.88,84.813,10.6176]
[1770462154777,10.6094,84.88,84.814,3.82858537]
[1770462155371,3.6368274,84.879,84.814,3.82858537]
[1770462155770,3.6368274,84.879,84.82,3.82858537]
[1770462157677,14.2462274,84.879,84.82,3.82858537]
[1770462158075,10.6094,84.879,84.824,3.78912357]
[1770462158575,14.60359122,84.879,84.824,3.78912357]
[1770462158772,10.6084,84.887,84.831,3.78912357]
[1770462159679,10.6084,84.887,84.834,10.615]
[1770462159881,14.60259122,84.887,84.835,3.78912357]
[1770462161575,3.99419122,84.887,84.835,3.78912357]
[1770462164382,3.99419122,84.884,84.815,3.78912357]
[1770462165180,3.99419122,84.884,84.772,2.05120346]
[1770462165181,3.99419122,84.869,84.818,3.78912357]
[1770462165676,3.99419122,84.869,84.791,3.78912357]
[1770462166681,3.99419122,84.866,84.796,3.78912357]
[1770462167587,3.99419122,84.866,84.806,3.78912357]
[1770462168482,3.99419122,84.865,84.806,3.78912357]
[1770462169089,3.99419122,84.863,84.806,3.78912357]
[1770462169478,3.99419122,84.863,84.753,175.75138136]
[1770462169479,3.99419122,84.849,84.792,3.78912357]
[1770462169679,3.99419122,84.846,84.792,3.78912357]
[1770462170884,3.99419122,84.836,84.771,3.78912357]
[1770462171688,3.99419122,84.834,84.771,3.78912357]
[1770462171884,3.99419122,84.851,84.791,3.78912357]
[1770462172584,3.99419122,84.851,84.8,3.78912357]
[1770462173291,3.99419122,84.851,84.802,3.78912357]
[1770462173487,3.99419122,84.866,84.802,3.78912357]
[1770462174688,3.99419122,84.866,84.803,10.6189]
[1770462174893,3.99419122,84.866,84.804,3.78912357]
[1770462175490,3.99419122,84.866,84.77,14.44184182]
[1770462175491,3.99419122,84.866,84.813,10.6176]
[1770462175694,3.99419122,84.866,84.814,3.78912357]
[1770462176197,14.60539122,84.865,84.814,3.78912357]
[1770462176593,10.6125,84.855,84.814,3.78912357]
[1770462176892,3.99419122,84.854,84.791,3.78912357]
[1770462177693,3.99419122,84.85,84.791,3.78912357]
[1770462178695,3.99419122,84.864,84.811,3.78912357]
[1770462179193,3.99419122,84.864,84.798,3.78912357]
[1770462179395,3.99419122,84.862,84.798,3.78912357]
[1770462180294,3.99419122,84.862,84.803,3.78912357]
[1770462180498,3.99419122,84.878,84.811,3.78912357]
[1770462181001,3.99419122,84.869,84.798,3.78912357]
[1770462181194,35.34,84.895,84.782,3.78912357]
[1770462181195,3.99419122,84.849,84.782,3.78912357]
[1770462182498,3.99419122,84.823,84.759,3.78912357]
[1770462184006,3.99419122,84.819,84.759,3.78912357]
[1770462185000,3.99419122,84.819,84.761,3.78912357]
[1770462185001,3.99419122,84.818,84.761,3.78912357]
[1770462186003,3.99419122,84.818,84.763,3.9596376]
[1770462186898,3.99419122,84.818,84.765,3.9596376]
[1770462188806,3.99419122,84.818,84.73,62.0]
[1770462188807,3.99419122,84.818,84.771,3.9596376]
[1770462192609,14.53040161,84.866,84.771,3.9596376]
[1770462192610,3.70368326,84.832,84.771,3.9596376]
[1770462193306,10.6165,84.823,84.771,3.9596376]
[1770462195410,10.6163,84.825,84.771,3.9596376]
[1770462195713,3.70368326,84.824,84.771,3.9596376]
[1770462196706,10.6171,84.818,84.771,3.9596376]
[1770462196908,3.70368326,84.849,84.773,3.96625481]
[1770462197618,3.70368326,84.834,84.775,3.96625481]
[1770462198110,3.70368326,84.834,84.777,10.6221]
[1770462198317,3.70368326,84.834,84.778,3.96625481]
[1770462199414,3.70368326,84.834,84.791,3.96625481]
[1770462200716,3.70368326,84.834,84.792,3.96625481]
[1770462201709,3.70368326,84.834,84.796,14.58605481]
[1770462203120,3.70368326,84.834,84.797,3.96625481]
[1770462203418,3.70368326,84.834,84.784,3.96625481]
[1770462204215,3.70368326,84.834,84.788,3.96625481]
[1770462207512,3.70368326,84.834,84.8,5.00607743]
[1770462207714,3.70368326,84.849,84.8,8.97233224]
[1770462209017,3.70368326,84.849,84.81,5.00607743]
[1770462209515,3.70368326,84.849,84.81,5.00414561]
[1770462210525,3.70368326,84.849,84.8,8.97040042]
[1770462210910,5.00414561,84.84,84.8,3.96625481]
[1770462211114,3.70368326,84.839,84.8,3.96625481]
[1770462212823,14.31828326,84.838,84.8,3.96625481]
[1770462214421,3.70368326,84.837,84.8,3.96625481]
[1770462215124,3.70368326,84.837,84.8,8.97040042]
[1770462215525,3.70368326,84.849,84.811,3.96625481]
[1770462216520,3.65605916,84.847,84.811,3.96625481]
[1770462217521,3.65605916,84.847,84.774,14.44184182]
[1770462217522,3.65605916,84.839,84.796,3.82191877]
[1770462218926,10.6148,84.837,84.796,3.82191877]
[1770462219324,14.27085916,84.837,84.796,3.82191877]
[1770462219726,14.27085916,84.837,84.8,5.00414561]
[1770462221720,10.6148,84.837,84.8,5.00414561]
[1770462221925,3.65605916,84.836,84.8,5.00414561]
[1770462224331,3.65605916,84.834,84.796,3.82191877]
[1770462225727,10.6152,84.833,84.796,3.82191877]
[1770462226324,14.27125916,84.833,84.796,3.82191877]
[1770462226927,14.27125916,84.833,84.764,14.44184182]
[1770462226928,3.65605916,84.826,84.773,3.82191877]
[1770462227124,5.00414561,84.82,84.773,3.82191877]
[1770462227524,3.65605916,84.826,84.781,3.82191877]
[1770462227724,14.27265916,84.822,84.781,3.82191877]
[1770462230132,14.27265916,84.822,84.79,5.00414561]
[1770462230527,3.65605916,84.822,84.79,5.00414561]
[1770462232637,3.65605916,84.822,84.79,8.82606438]
[1770462232939,3.65605916,84.822,84.751,21.66235818]
[1770462232940,3.65605916,84.833,84.8,5.00414561]
[1770462239051,3.65605916,84.855,84.82,5.00414561]
[1770462239246,3.65605916,84.855,84.811,3.82191877]
[1770462240041,3.65605916,84.855,84.82,5.00414561]
[1770462240249,3.65605916,84.867,84.821,3.82191877]
[1770462240447,3.65605916,84.867,84.84,5.00414561]
[1770462240640,3.65605916,84.88,84.84,5.00414561]
[1770462241349,3.65605916,84.891,84.86,5.00414561]
[1770462241555,3.65605916,84.916,84.88,5.00414561]
[1770462242054,3.65605916,84.916,84.87,8.82606438]
[1770462242249,3.65605916,84.914,84.87,8.82606438]
[1770462242454,3.65605916,84.909,84.87,3.82191877]
[1770462243054,3.65605916,84.909,84.88,5.00414561]
[1770462246848,3.7355833,84.925,84.89,5.00414561]
[1770462247047,3.7355833,84.939,84.9,5.00414561]
[1770462247247,3.7355833,84.939,84.901,3.68421199]
[1770462247462,3.7355833,84.939,84.91,5.00414561]
[1770462247663,3.7355833,84.939,84.901,3.68421199]
[1770462248252,3.7355833,84.955,84.92,5.00414561]
[1770462248751,3.7355833,84.955,84.911,3.68421199]
[1770462250261,3.95514025,84.97,84.911,3.68421199]
[1770462250952,3.95514025,84.984,84.921,3.78819973]
[1770462252056,3.95514025,84.981,84.921,3.78819973]
[1770462252858,3.95514025,84.969,84.908,3.78819973]
[1770462253662,3.95514025,84.968,84.908,3.78819973]
[1770462254663,3.95514025,84.966,84.908,3.78819973]
[1770462255562,3.95514025,84.96,84.908,3.78819973]
[1770462258857,3.95514025,84.955,84.908,3.78819973]
[1770462262459,3.95514025,84.951,84.908,3.78819973]
[1770462263460,3.95514025,84.964,84.911,3.78819973]
[1770462266767,3.95514025,84.964,84.914,3.78819973]
[1770462267964,3.95514025,84.98,84.916,3.78819973]
[1770462268462,3.95514025,84.98,84.921,3.78819973]
[1770462269471,3.95514025,84.979,84.931,3.78819973]
[1770462269879,3.95514025,84.978,84.94,4.98900897]
[1770462270170,3.95514025,84.978,84.941,3.78819973]
[1770462271167,3.95514025,84.978,84.93,4.98900897]
[1770462271367,3.95514025,84.978,84.929,3.78819973]
[1770462271574,3.95514025,84.974,84.929,3.78819973]
[1770462272567,3.95514025,84.972,84.929,3.78819973]
[1770462273075,3.95514025,84.999,84.931,3.78819973]
[1770462273470,3.95514025,84.997,84.936,3.78819973]
[1770462274074,3.95514025,84.995,84.94,3.78819973]
[1770462275367,10.5937,85.005,84.951,3.78819973]
[1770462276577,14.30776994,85.005,84.951,3.78819973]
[1770462276880,14.30776994,85.005,84.954,3.79022471]
[1770462277579,3.71406994,85.005,84.957,3.79022471]
[1770462277980,3.71406994,84.976,84.933,3.79022471]
[1770462278473,3.71406994,84.976,84.921,3.79022471]
[1770462279779,3.71406994,84.965,84.921,3.79022471]
[1770462280774,3.71406994,84.963,84.921,3.79022471]
[1770462283674,3.71406994,84.961,84.921,3.79022471]
[1770462288385,3.71406994,84.978,84.921,3.79022471]
[1770462288780,3.71406994,84.978,84.925,3.79022471]
[1770462290383,3.71406994,84.978,84.928,3.79022471]
[1770462291581,10.5951,84.994,84.937,3.79022471]
[1770462291787,3.71406994,84.99,84.937,3.79022471]
[1770462292688,3.71406994,84.99,84.939,10.6019]
[1770462292888,3.71406994,84.99,84.94,3.79022471]
[1770462293082,3.71406994,85.004,84.94,3.79022471]
[1770462293285,3.71406994,85.013,84.964,3.79022471]
[1770462293478,3.71406994,84.999,84.964,3.79022471]
[1770462294284,3.71406994,84.999,84.951,3.79022471]
[1770462295086,3.71406994,84.999,84.96,4.98590509]
[1770462295288,3.71406994,84.999,84.951,3.79022471]
[1770462295880,3.71406994,84.993,84.951,3.79022471]
[1770462296083,3.71406994,84.989,84.951,3.79022471]
[1770462296982,3.71406994,85.012,84.97,4.98590509]
[1770462297184,3.71406994,85.009,84.961,3.79022471]
[1770462298090,3.71406994,84.999,84.95,4.98590509]
[1770462298388,3.71406994,84.999,84.95,8.7761298]
[1770462298792,3.71406994,84.989,84.932,3.79022471]
[1770462298990,3.71406994,84.979,84.932,3.79022471]
[1770462299482,3.71406994,84.979,84.936,3.79022471]
[1770462302792,3.71406994,84.979,84.903,14.44184182]
[1770462302793,3.71406994,84.979,84.921,3.79022471]
[1770462303188,3.71406994,84.978,84.921,3.79022471]
[1770462303390,3.71406994,84.978,84.923,3.79022471]
[1770462304091,3.71406994,84.978,84.935,10.6024]
[1770462304390,3.71406994,84.978,84.934,3.79022471]
[1770462304990,3.71406994,84.978,84.921,3.79022471]
[1770462305592,3.71406994,84.976,84.907,3.79022471]
[1770462306190,3.99527572,84.973,84.912,3.90510643]
[1770462307786,3.99527572,84.969,84.912,3.90510643]
[1770462308189,3.99527572,84.966,84.912,3.90510643]
[1770462308987,3.99527572,84.953,84.893,3.90510643]
[1770462309193,3.99527572,84.959,84.901,3.90510643]
[1770462309393,3.99527572,84.956,84.901,3.90510643]
[1770462310700,3.6756297,84.953,84.901,3.90510643]
[1770462311800,3.6756297,84.947,84.901,3.90510643]
[1770462312302,3.6756297,84.945,84.901,3.90510643]
[1770462312695,3.6756297,84.959,84.901,3.90510643]
[1770462312897,3.6756297,84.975,84.901,3.90510643]
[1770462313203,3.6756297,84.975,84.907,3.63633141]
[1770462313404,3.6756297,84.975,84.921,3.63633141]
[1770462313791,3.6756297,84.975,84.925,3.63633141]
[1770462314797,3.6756297,84.975,84.929,3.63633141]
[1770462321212,3.6756297,84.987,84.939,3.63633141]
[1770462321407,3.6756297,85.016,84.941,3.63633141]
[1770462321619,3.6756297,85.016,84.947,3.63633141]
[1770462322121,3.6756297,85.016,84.944,3.63633141]
[1770462323514,8.660938,85.01,84.961,3.63633141]
[1770462323913,3.6756297,85.009,84.961,3.63633141]
[1770462324918,3.6756297,85.009,84.97,4.9853083]
[1770462325419,10.5911,85.026,84.964,10.5987]
[1770462325420,3.6756297,85.021,84.98,4.9853083]
[1770462325619,3.6756297,85.021,84.981,3.63633141]
[1770462327717,4.9853083,85.03,84.981,3.63633141]
[1770462327924,3.6756297,85.033,84.991,3.63633141]
[1770462328418,3.6756297,85.075,85.021,3.63633141]
[1770462328620,3.6756297,85.075,85.031,3.63633141]
[1770462329319,3.6756297,85.099,85.05,4.9853083]
[1770462329824,3.6756297,85.099,85.06,4.9853083]
[1770462330219,3.6756297,85.099,85.051,3.63633141]
[1770462330421,3.6756297,85.114,85.07,4.9853083]
[1770462331821,3.6756297,85.099,85.05,4.9853083]
[1770462332123,3.6756297,85.089,85.047,3.63633141]
[1770462332524,3.6756297,85.089,85.04,4.9853083]
[1770462332724,3.6756297,85.079,85.033,3.63633141]
[1770462332925,3.6756297,85.069,85.02,4.9853083]
[1770462333224,35.35,85.12,85.01,8.62163971]
[1770462333225,3.6756297,85.059,85.01,8.62163971]
[1770462333425,3.6756297,85.059,85.01,8.6165148]
[1770462333922,4.98018339,85.08,85.04,4.98018339]
[1770462334425,3.6756297,85.089,85.04,4.98018339]
[1770462335723,3.6756297,85.089,85.05,4.98018339]
[1770462336121,3.6756297,85.089,84.981,14.44184182]
[1770462336122,4.367e-05,85.104,85.081,3.75600947]
[1770462336420,3.81706271,85.14,85.091,3.75600947]
[1770462336620,3.81706271,85.14,85.1,4.98018339]
[1770462337214,3.81706271,85.14,85.11,4.98018339]
[1770462337516,3.81706271,85.14,85.091,3.75600947]
[1770462337823,3.81706271,85.14,85.075,3.75600947]
[1770462338322,3.81706271,85.129,85.061,3.75600947]
[1770462338822,3.81706271,85.125,85.061,3.75600947]
[1770462339420,3.81706271,85.125,85.065,3.75600947]
[1770462340224,3.81706271,85.125,85.066,3.75600947]
[1770462341332,3.81706271,85.125,84.992,10.97373137]
[1770462341333,3.81706271,85.119,85.05,3.75600947]
[1770462341829,3.81706271,85.119,85.061,3.75600947]
[1770462342924,3.81706271,85.135,85.081,3.75600947]
[1770462343522,3.81706271,85.135,85.084,3.75600947]
[1770462344226,3.81706271,85.155,85.084,3.75600947]
[1770462345725,3.81706271,85.153,85.086,3.75600947]
[1770462346722,3.81706271,85.153,85.09,3.75600947]
[1770462347621,3.81706271,85.148,85.075,3.75600947]
[1770462347931,3.81706271,85.129,85.061,3.75600947]
[1770462348719,3.81706271,85.124,85.061,3.75600947]
[1770462348923,14.78879138,85.13,85.061,3.75600947]
[1770462349121,3.81706271,85.139,85.061,3.75600947]
[1770462349528,3.81706271,85.137,85.073,3.75600947]
[1770462349735,3.81706271,85.137,85.081,3.75600947]
[1770462350634,3.81706271,85.137,85.083,3.75600947]
[1770462351427,21.1443,85.179,85.08,14.78879138]
[1770462351428,3.81706271,85.151,85.093,3.75600947]
[1770462352833,3.81706271,85.151,85.095,3.75600947]
[1770462353128,3.81706271,85.15,85.095,3.75600947]
[1770462353428,3.81706271,85.146,85.095,3.75600947]
[1770462353629,3.81706271,85.146,85.08,3.75600947]
[1770462353824,3.81706271,85.129,85.061,3.75600947]
[1770462354421,3.81706271,85.129,85.063,3.75600947]
[1770462355334,3.81706271,85.129,85.078,3.75600947]
[1770462355926,3.81706271,85.129,85.081,3.75600947]
[1770462356129,10.5766,85.143,85.081,3.75600947]
[1770462356335,3.81706271,85.142,85.081,3.75600947]
[1770462357731,10.5768,85.141,85.081,3.75600947]
[1770462358035,3.81706271,85.14,85.085,3.75600947]
[1770462359537,3.81706271,85.14,85.088,3.75600947]
[1770462360231,3.81706271,85.14,85.091,3.75600947]
[1770462361034,3.81706271,85.14,85.05,14.78879138]
[1770462361035,3.81706271,85.135,85.077,3.75600947]
[1770462361226,3.81706271,85.129,85.062,3.75600947]
[1770462361429,3.81706271,85.129,85.065,3.75600947]
[1770462362834,3.81706271,85.123,85.07,3.75600947]
[1770462363743,3.81706271,85.123,85.074,3.75600947]
[1770462364232,3.81706271,85.123,85.076,3.75600947]
[1770462364843,35.35,85.163,85.07,14.78879138]
[1770462364844,3.81706271,85.138,85.084,3.75600947]
[1770462365739,10.5774,85.137,85.088,3.65289962]
[1770462365945,3.81706271,85.138,85.088,3.65289962]
[1770462366441,3.81706271,85.138,85.089,10.5832]
[1770462367945,3.82310404,85.135,85.088,3.65289962]
[1770462372450,14.78879138,85.13,85.071,3.86399803]
[1770462372655,3.77160314,85.129,85.071,3.86399803]
[1770462373755,3.77160314,85.124,85.071,3.86399803]
[1770462375752,3.77160314,85.12,85.071,3.86399803]
[1770462376348,14.78879138,85.13,85.05,14.78879138]